[Event "Titled Tuesday Blitz February 22 Late 2022"]
[White "Bon, Michael"]
[Black "Jaferian, Koosha"]
[WhiteFideId "620696"]
[BlackFideId "12507440"]
[WhiteElo "2386"]
[BlackElo "2027"]
[Result "0-1"]
[Round "02"]
[TimeControl "180+1"]
[Date "2022.02.23"]
[WhiteClock "0:00:17"]
[BlackClock "0:00:16"]

1. e4 {[%clk 0:03:00]}  c6 {[%clk 0:03:00]} 2. d4 {[%clk 0:03:00]}  d5 {[%clk 0:03:01]} 3. e5 {[%clk 0:02:58]}  Bf5 {[%clk 0:03:01]} 4. c4 {[%clk 0:02:58]}  e6 {[%clk 0:03:00]} 5. Nc3 {[%clk 0:02:59]}  dxc4 {[%clk 0:03:00]} 6. Bxc4 {[%clk 0:02:58]}  Nd7 {[%clk 0:03:01]} 7. Nf3 {[%clk 0:02:56]}  Ne7 {[%clk 0:03:01]} 8. h3 {[%clk 0:02:56]}  Bg6 {[%clk 0:03:01]} 9. O-O {[%clk 0:02:53]}  Nb6 {[%clk 0:03:01]} 10. Bb3 {[%clk 0:02:50]}  Ned5 {[%clk 0:03:00]} 11. Qe2 {[%clk 0:02:49]}  Be7 {[%clk 0:02:59]} 12. Ne4 {[%clk 0:02:49]}  O-O {[%clk 0:02:58]} 13. Rd1 {[%clk 0:02:46]}  Qc7 {[%clk 0:02:57]} 14. Bg5 {[%clk 0:02:39]}  Rad8 {[%clk 0:02:56]} 15. Rac1 {[%clk 0:02:38]}  Bxg5 {[%clk 0:02:52]} 16. Nfxg5 {[%clk 0:02:33]}  Qe7 {[%clk 0:02:44]} 17. Nf3 {[%clk 0:02:24]}  Nf4 {[%clk 0:02:42]} 18. Qe1 {[%clk 0:02:06]}  Bh5 {[%clk 0:02:33]} 19. Qe3 {[%clk 0:01:49]}  Nbd5 {[%clk 0:02:32]} 20. Bxd5 {[%clk 0:01:49]}  Nxd5 {[%clk 0:02:33]} 21. Qb3 {[%clk 0:01:47]}  Nf4 {[%clk 0:02:29]} 22. Nc5 {[%clk 0:01:38]}  Ne2+ {[%clk 0:02:27]} 23. Kh2 {[%clk 0:01:37]}  Nxc1 {[%clk 0:02:28]} 24. Rxc1 {[%clk 0:01:37]}  Bxf3 {[%clk 0:02:28]} 25. Qxf3 {[%clk 0:01:32]}  Rxd4 {[%clk 0:02:28]} 26. Qe3 {[%clk 0:01:28]}  Rd5 {[%clk 0:02:27]} 27. f4 {[%clk 0:01:27]}  Qc7 {[%clk 0:02:15]} 28. Rc2 {[%clk 0:01:26]}  Qb6 {[%clk 0:02:15]} 29. Qc3 {[%clk 0:01:18]}  h6 {[%clk 0:02:06]} 30. b4 {[%clk 0:01:10]}  Rfd8 {[%clk 0:02:02]} 31. a3 {[%clk 0:01:10]}  Rd4 {[%clk 0:01:54]} 32. Qg3 {[%clk 0:01:10]}  Qb5 {[%clk 0:01:47]} 33. f5 {[%clk 0:01:07]}  exf5 {[%clk 0:01:37]} 34. e6 {[%clk 0:01:07]}  Qb6 {[%clk 0:00:36]} 35. Rf2 {[%clk 0:00:46]}  f4 {[%clk 0:00:27]} 36. Qg4 {[%clk 0:00:30]}  Qc7 {[%clk 0:00:25]} 37. exf7+ {[%clk 0:00:28]}  Qxf7 {[%clk 0:00:25]} 38. Ne6 {[%clk 0:00:28]}  R8d6 {[%clk 0:00:20]} 39. Nxf4 {[%clk 0:00:17]}  Rf6 {[%clk 0:00:16]} 40. g3 {[%clk 0:00:17]}  Rd8 {[%clk 0:00:16]} 0-1


[Site "https://www.chess.com"]

[Event "Titled Tuesday Blitz February 22 Late 2022"]
[White "Bortnyk, Olexandr"]
[Black "Badmatsyrenov, Oleg"]
[WhiteFideId "14120828"]
[BlackFideId "24115762"]
[WhiteElo "2723"]
[BlackElo "2403"]
[Result "0-1"]
[Round "02"]
[TimeControl "180+1"]
[Date "2022.02.22"]
[WhiteClock "0:00:02"]
[BlackClock "0:00:08"]

1. e4 {[%clk 0:02:58]}  c5 {[%clk 0:02:58]} 2. c3 {[%clk 0:02:54]}  d5 {[%clk 0:02:57]} 3. exd5 {[%clk 0:02:52]}  Qxd5 {[%clk 0:02:58]} 4. d4 {[%clk 0:02:53]}  Nf6 {[%clk 0:02:58]} 5. Nf3 {[%clk 0:02:49]}  Bg4 {[%clk 0:02:58]} 6. dxc5 {[%clk 0:02:45]}  Qxc5 {[%clk 0:02:58]} 7. Be3 {[%clk 0:02:38]}  Qc7 {[%clk 0:02:58]} 8. Na3 {[%clk 0:02:33]}  a6 {[%clk 0:02:58]} 9. h3 {[%clk 0:02:18]}  Bf5 {[%clk 0:02:59]} 10. Qa4+ {[%clk 0:02:14]}  Nbd7 {[%clk 0:02:48]} 11. Rd1 {[%clk 0:02:04]}  e5 {[%clk 0:02:44]} 12. Be2 {[%clk 0:01:44]}  Be7 {[%clk 0:02:38]} 13. Nb5 {[%clk 0:01:08]}  Qb8 {[%clk 0:02:34]} 14. Na3 {[%clk 0:00:55]}  b5 {[%clk 0:02:17]} 15. Qb3 {[%clk 0:00:43]}  O-O {[%clk 0:01:56]} 16. O-O {[%clk 0:00:42]}  Nc5 {[%clk 0:01:29]} 17. Qb4 {[%clk 0:00:36]}  Qc7 {[%clk 0:01:21]} 18. Rfe1 {[%clk 0:00:23]}  Nd3 {[%clk 0:01:09]} 19. Qb3 {[%clk 0:00:18]}  Nxe1 {[%clk 0:01:05]} 20. Rxe1 {[%clk 0:00:19]}  Be6 {[%clk 0:01:01]} 21. Qc2 {[%clk 0:00:18]}  Nd5 {[%clk 0:00:47]} 22. Bc1 {[%clk 0:00:17]}  Bxa3 {[%clk 0:00:38]} 23. bxa3 {[%clk 0:00:18]}  Qxc3 {[%clk 0:00:39]} 24. Qe4 {[%clk 0:00:18]}  Rfe8 {[%clk 0:00:20]} 25. Bd2 {[%clk 0:00:09]}  Qxa3 {[%clk 0:00:20]} 26. Ng5 {[%clk 0:00:09]}  Nf6 {[%clk 0:00:20]} 27. Qh4 {[%clk 0:00:09]}  Bf5 {[%clk 0:00:20]} 28. Bf3 {[%clk 0:00:05]}  Rad8 {[%clk 0:00:19]} 29. Be3 {[%clk 0:00:02]}  h6 {[%clk 0:00:17]} 30. Ne4 {[%clk 0:00:02]}  Nxe4 {[%clk 0:00:17]} 31. Bxe4 {[%clk 0:00:03]}  Qb4 {[%clk 0:00:15]} 32. Bd2 {[%clk 0:00:02]}  Rxd2 {[%clk 0:00:14]} 33. f3 {[%clk 0:00:02]}  Bxe4 {[%clk 0:00:14]} 34. Rxe4 {[%clk 0:00:03]}  Rd1+ {[%clk 0:00:14]} 35. Kh2 {[%clk 0:00:03]}  Qd6 {[%clk 0:00:13]} 36. Qg4 {[%clk 0:00:02]}  Qg6 {[%clk 0:00:12]} 37. Qh4 {[%clk 0:00:03]}  Rd2 {[%clk 0:00:12]} 38. Rg4 {[%clk 0:00:03]}  Qd6 {[%clk 0:00:11]} 39. Qh5 {[%clk 0:00:03]}  e4+ {[%clk 0:00:11]} 40. f4 {[%clk 0:00:04]}  e3 {[%clk 0:00:11]} 41. Qh4 {[%clk 0:00:04]}  e2 {[%clk 0:00:09]} 42. Qg3 {[%clk 0:00:04]}  Qf6 {[%clk 0:00:08]} 43. Qe1 {[%clk 0:00:02]}  Rd1 {[%clk 0:00:08]} 0-1


[Site "https://www.chess.com"]

[Event "Titled Tuesday Blitz February 22 Late 2022"]
[White "Bouget, Alexandre"]
[Black "Liang, Jason"]
[WhiteFideId "681318"]
[BlackFideId "30940303"]
[WhiteElo "2178"]
[BlackElo "1976"]
[Result "1-0"]
[Round "02"]
[TimeControl "180+1"]
[Date "2022.02.23"]
[WhiteClock "0:00:22"]
[BlackClock "0:00:55"]

1. d4 {[%clk 0:03:00]}  d5 {[%clk 0:02:59]} 2. c4 {[%clk 0:03:00]}  Nc6 {[%clk 0:03:00]} 3. Nf3 {[%clk 0:02:58]}  Bg4 {[%clk 0:03:00]} 4. Qa4 {[%clk 0:02:58]}  Bxf3 {[%clk 0:02:55]} 5. exf3 {[%clk 0:02:58]}  dxc4 {[%clk 0:02:53]} 6. Bxc4 {[%clk 0:02:59]}  Qxd4 {[%clk 0:02:47]} 7. O-O {[%clk 0:02:50]}  e6 {[%clk 0:02:34]} 8. Nc3 {[%clk 0:02:47]}  Bd6 {[%clk 0:02:33]} 9. Be3 {[%clk 0:02:34]}  Qh4 {[%clk 0:02:33]} 10. g3 {[%clk 0:02:33]}  Qh5 {[%clk 0:02:33]} 11. Ba6 {[%clk 0:02:11]}  Ne7 {[%clk 0:02:03]} 12. Bxb7 {[%clk 0:02:10]}  Kd7 {[%clk 0:01:54]} 13. Bxa8 {[%clk 0:01:58]}  Rxa8 {[%clk 0:01:55]} 14. Ne4 {[%clk 0:01:48]}  Qxf3 {[%clk 0:01:49]} 15. Rfd1 {[%clk 0:01:49]}  Nd5 {[%clk 0:01:46]} 16. Rac1 {[%clk 0:01:40]}  Ne7 {[%clk 0:01:45]} 17. Rxc6 {[%clk 0:01:01]}  Nxc6 {[%clk 0:01:42]} 18. Rc1 {[%clk 0:01:02]}  Rb8 {[%clk 0:01:18]} 19. Qxc6+ {[%clk 0:01:01]}  Ke7 {[%clk 0:01:18]} 20. Bc5 {[%clk 0:00:49]}  Rd8 {[%clk 0:00:56]} 21. Qxc7+ {[%clk 0:00:45]}  Rd7 {[%clk 0:00:57]} 22. Bxd6+ {[%clk 0:00:45]}  Ke8 {[%clk 0:00:57]} 23. Qc8+ {[%clk 0:00:41]}  Rd8 {[%clk 0:00:57]} 24. Qc6+ {[%clk 0:00:40]}  Rd7 {[%clk 0:00:57]} 25. Ba3 {[%clk 0:00:27]}  Qd3 {[%clk 0:00:40]} 26. Nc5 {[%clk 0:00:20]}  Qd5 {[%clk 0:00:38]} 27. Qxd7+ {[%clk 0:00:20]}  Qxd7 {[%clk 0:00:38]} 28. Nxd7 {[%clk 0:00:20]}  Kxd7 {[%clk 0:00:39]} 29. Rd1+ {[%clk 0:00:20]}  Kc7 {[%clk 0:00:39]} 30. Rd3 {[%clk 0:00:21]}  a6 {[%clk 0:00:39]} 31. f4 {[%clk 0:00:22]}  f6 {[%clk 0:00:39]} 32. Kf2 {[%clk 0:00:23]}  e5 {[%clk 0:00:39]} 33. Ke3 {[%clk 0:00:24]}  exf4+ {[%clk 0:00:40]} 34. Kxf4 {[%clk 0:00:25]}  g6 {[%clk 0:00:40]} 35. Ke4 {[%clk 0:00:25]}  Kc6 {[%clk 0:00:40]} 36. Rd6+ {[%clk 0:00:25]}  Kb5 {[%clk 0:00:41]} 37. Rxf6 {[%clk 0:00:26]}  a5 {[%clk 0:00:42]} 38. Kd3 {[%clk 0:00:25]}  a4 {[%clk 0:00:43]} 39. Kc2 {[%clk 0:00:26]}  g5 {[%clk 0:00:44]} 40. b3 {[%clk 0:00:25]}  h5 {[%clk 0:00:45]} 41. Rf5+ {[%clk 0:00:25]}  Kb6 {[%clk 0:00:45]} 42. Rxg5 {[%clk 0:00:26]}  h4 {[%clk 0:00:45]} 43. bxa4 {[%clk 0:00:25]}  hxg3 {[%clk 0:00:46]} 44. a5+ {[%clk 0:00:26]}  Kc6 {[%clk 0:00:47]} 45. hxg3 {[%clk 0:00:25]}  Kd7 {[%clk 0:00:48]} 46. Kb3 {[%clk 0:00:26]}  Ke6 {[%clk 0:00:49]} 47. Kc4 {[%clk 0:00:26]}  Kf6 {[%clk 0:00:49]} 48. Rd5 {[%clk 0:00:25]}  Ke6 {[%clk 0:00:50]} 49. a6 {[%clk 0:00:25]}  Kf7 {[%clk 0:00:51]} 50. a7 {[%clk 0:00:26]}  Kf6 {[%clk 0:00:51]} 51. a8=Q {[%clk 0:00:26]}  Ke6 {[%clk 0:00:52]} 52. Qa6+ {[%clk 0:00:26]}  Kf7 {[%clk 0:00:53]} 53. Rd7+ {[%clk 0:00:26]}  Ke8 {[%clk 0:00:54]} 54. Re7+ {[%clk 0:00:22]}  Kd8 {[%clk 0:00:55]} 55. Qa8# {[%clk 0:00:22]} 1-0


[Site "https://www.chess.com"]

[Event "Titled Tuesday Blitz February 22 Late 2022"]
[White "Brunner, Nicolas"]
[Black "Melaugh, Shane"]
[WhiteFideId "620246"]
[BlackFideId "2509580"]
[WhiteElo "2372"]
[BlackElo "2000"]
[Result "1-0"]
[Round "02"]
[TimeControl "180+1"]
[Date "2022.02.23"]
[WhiteClock "0:01:38"]
[BlackClock "0:00:47"]

1. d4 {[%clk 0:02:56]}  e6 {[%clk 0:03:00]} 2. Nf3 {[%clk 0:02:55]}  f5 {[%clk 0:03:00]} 3. g3 {[%clk 0:02:54]}  Nf6 {[%clk 0:03:01]} 4. Bg2 {[%clk 0:02:53]}  Be7 {[%clk 0:03:01]} 5. O-O {[%clk 0:02:53]}  O-O {[%clk 0:03:02]} 6. b3 {[%clk 0:02:53]}  d6 {[%clk 0:03:03]} 7. Bb2 {[%clk 0:02:53]}  Qe8 {[%clk 0:02:59]} 8. Nbd2 {[%clk 0:02:52]}  Nc6 {[%clk 0:02:59]} 9. Re1 {[%clk 0:02:52]}  Ne4 {[%clk 0:02:51]} 10. Nxe4 {[%clk 0:02:52]}  fxe4 {[%clk 0:02:52]} 11. Nd2 {[%clk 0:02:51]}  d5 {[%clk 0:02:53]} 12. f3 {[%clk 0:02:51]}  exf3 {[%clk 0:02:30]} 13. exf3 {[%clk 0:02:51]}  Bf6 {[%clk 0:02:29]} 14. Nf1 {[%clk 0:02:48]}  Bd7 {[%clk 0:02:25]} 15. f4 {[%clk 0:02:46]}  Ne7 {[%clk 0:02:15]} 16. Ne3 {[%clk 0:02:45]}  c5 {[%clk 0:02:14]} 17. Ng4 {[%clk 0:02:43]}  Bxd4+ {[%clk 0:02:08]} 18. Bxd4 {[%clk 0:02:43]}  cxd4 {[%clk 0:02:09]} 19. Qxd4 {[%clk 0:02:43]}  Nf5 {[%clk 0:02:00]} 20. Qd2 {[%clk 0:02:33]}  Rc8 {[%clk 0:01:55]} 21. Bxd5 {[%clk 0:02:30]}  Qe7 {[%clk 0:01:46]} 22. Bxb7 {[%clk 0:02:26]}  Qc5+ {[%clk 0:01:44]} 23. Qf2 {[%clk 0:02:23]}  Qxf2+ {[%clk 0:01:33]} 24. Nxf2 {[%clk 0:02:22]}  Rxc2 {[%clk 0:01:34]} 25. Be4 {[%clk 0:02:19]}  Rc7 {[%clk 0:01:23]} 26. Rac1 {[%clk 0:02:17]}  Rfc8 {[%clk 0:01:22]} 27. Rxc7 {[%clk 0:02:17]}  Rxc7 {[%clk 0:01:23]} 28. Ng4 {[%clk 0:02:07]}  Bc6 {[%clk 0:01:04]} 29. Rc1 {[%clk 0:01:56]}  Nd4 {[%clk 0:01:03]} 30. Kf2 {[%clk 0:01:49]}  Rc8 {[%clk 0:00:51]} 31. Ne5 {[%clk 0:01:47]}  Bb7 {[%clk 0:00:52]} 32. Rxc8+ {[%clk 0:01:45]}  Bxc8 {[%clk 0:00:53]} 33. Ke3 {[%clk 0:01:45]}  Nb5 {[%clk 0:00:52]} 34. Bd3 {[%clk 0:01:39]}  Nc7 {[%clk 0:00:49]} 35. Nc6 {[%clk 0:01:39]}  a6 {[%clk 0:00:47]} 36. Ne7+ {[%clk 0:01:38]} 1-0


[Site "https://www.chess.com"]

[Event "Titled Tuesday Blitz February 22 Late 2022"]
[White "Chabris, Christopher"]
[Black "Avramidou, Anastasia"]
[WhiteFideId "2005263"]
[BlackFideId "4239873"]
[WhiteElo "2322"]
[BlackElo "2183"]
[Result "0-1"]
[Round "02"]
[TimeControl "180+1"]
[Date "2022.02.23"]
[WhiteClock "0:00:26"]
[BlackClock "0:01:16"]

1. e4 {[%clk 0:02:59]}  g6 {[%clk 0:02:58]} 2. d4 {[%clk 0:02:59]}  Bg7 {[%clk 0:02:58]} 3. Nc3 {[%clk 0:02:59]}  c6 {[%clk 0:02:58]} 4. Be3 {[%clk 0:02:56]}  d5 {[%clk 0:02:52]} 5. e5 {[%clk 0:02:56]}  Nh6 {[%clk 0:02:52]} 6. Qd2 {[%clk 0:02:42]}  Nf5 {[%clk 0:02:50]} 7. Bf4 {[%clk 0:02:42]}  h5 {[%clk 0:02:49]} 8. h4 {[%clk 0:02:35]}  c5 {[%clk 0:02:48]} 9. dxc5 {[%clk 0:02:30]}  e6 {[%clk 0:02:46]} 10. Nb5 {[%clk 0:02:27]}  Nc6 {[%clk 0:02:38]} 11. Nd6+ {[%clk 0:02:23]}  Nxd6 {[%clk 0:02:37]} 12. exd6 {[%clk 0:02:21]}  Bxb2 {[%clk 0:02:37]} 13. Rb1 {[%clk 0:02:12]}  Bd4 {[%clk 0:02:22]} 14. c4 {[%clk 0:01:43]}  Qf6 {[%clk 0:02:09]} 15. Ne2 {[%clk 0:01:27]}  Bxc5 {[%clk 0:01:44]} 16. cxd5 {[%clk 0:01:22]}  exd5 {[%clk 0:01:40]} 17. Qxd5 {[%clk 0:01:18]}  Bb6 {[%clk 0:01:27]} 18. Bg5 {[%clk 0:00:59]}  Qe6 {[%clk 0:01:24]} 19. Qxe6+ {[%clk 0:00:54]}  Bxe6 {[%clk 0:01:25]} 20. Nf4 {[%clk 0:00:53]}  Bxa2 {[%clk 0:01:24]} 21. d7+ {[%clk 0:00:35]}  Kxd7 {[%clk 0:01:21]} 22. Rd1+ {[%clk 0:00:36]}  Kc8 {[%clk 0:01:18]} 23. Bc4 {[%clk 0:00:26]}  Bxc4 {[%clk 0:01:16]} 0-1


[Site "https://www.chess.com"]

[Event "Titled Tuesday Blitz February 22 Late 2022"]
[White "Colas, Joshua"]
[Black "Van Foreest, Jorden"]
[WhiteFideId "2044447"]
[BlackFideId "1039784"]
[WhiteElo "2347"]
[BlackElo "2609"]
[Result "0-1"]
[Round "02"]
[TimeControl "180+1"]
[Date "2022.02.22"]
[WhiteClock "0:00:04"]
[BlackClock "0:00:25"]

1. Nf3 {[%clk 0:03:00]}  d5 {[%clk 0:02:59]} 2. c4 {[%clk 0:03:00]}  e6 {[%clk 0:02:56]} 3. g3 {[%clk 0:03:00]}  b6 {[%clk 0:02:52]} 4. Bg2 {[%clk 0:02:59]}  Bb7 {[%clk 0:02:53]} 5. O-O {[%clk 0:02:59]}  Nf6 {[%clk 0:02:53]} 6. b3 {[%clk 0:02:59]}  Be7 {[%clk 0:02:53]} 7. Bb2 {[%clk 0:02:59]}  c5 {[%clk 0:02:53]} 8. e3 {[%clk 0:02:58]}  O-O {[%clk 0:02:52]} 9. Nc3 {[%clk 0:02:58]}  Nc6 {[%clk 0:02:47]} 10. cxd5 {[%clk 0:02:57]}  exd5 {[%clk 0:02:32]} 11. d4 {[%clk 0:02:51]}  Rc8 {[%clk 0:02:22]} 12. dxc5 {[%clk 0:02:47]}  bxc5 {[%clk 0:02:17]} 13. Rc1 {[%clk 0:02:46]}  Ba6 {[%clk 0:02:10]} 14. Re1 {[%clk 0:02:46]}  Nb4 {[%clk 0:02:10]} 15. Bf1 {[%clk 0:02:43]}  Bxf1 {[%clk 0:02:10]} 16. Rxf1 {[%clk 0:02:44]}  Qd7 {[%clk 0:02:08]} 17. a3 {[%clk 0:02:39]}  Nc6 {[%clk 0:02:04]} 18. Na4 {[%clk 0:02:38]}  Ne4 {[%clk 0:02:05]} 19. Nd2 {[%clk 0:02:35]}  Qf5 {[%clk 0:01:35]} 20. Nxe4 {[%clk 0:02:30]}  dxe4 {[%clk 0:01:36]} 21. Qc2 {[%clk 0:02:13]}  Nd8 {[%clk 0:01:35]} 22. f3 {[%clk 0:02:10]}  Ne6 {[%clk 0:01:31]} 23. fxe4 {[%clk 0:02:03]}  Qg6 {[%clk 0:01:30]} 24. Nc3 {[%clk 0:01:59]}  Rfe8 {[%clk 0:01:19]} 25. Nd5 {[%clk 0:01:59]}  Bf8 {[%clk 0:01:20]} 26. e5 {[%clk 0:01:41]}  Rb8 {[%clk 0:01:16]} 27. Qc4 {[%clk 0:01:14]}  Rb7 {[%clk 0:01:13]} 28. e4 {[%clk 0:01:09]}  Ng5 {[%clk 0:01:11]} 29. Rce1 {[%clk 0:01:05]}  h6 {[%clk 0:01:01]} 30. Nf4 {[%clk 0:01:02]}  Qb6 {[%clk 0:00:59]} 31. Re3 {[%clk 0:01:01]}  Qb5 {[%clk 0:00:57]} 32. Qxb5 {[%clk 0:00:56]}  Rxb5 {[%clk 0:00:58]} 33. h4 {[%clk 0:00:54]}  Ne6 {[%clk 0:00:58]} 34. Nxe6 {[%clk 0:00:51]}  Rxe6 {[%clk 0:00:59]} 35. a4 {[%clk 0:00:44]}  Rb7 {[%clk 0:00:59]} 36. Ba3 {[%clk 0:00:44]}  Rxe5 {[%clk 0:00:59]} 37. Rf5 {[%clk 0:00:45]}  Rbe7 {[%clk 0:00:50]} 38. Bxc5 {[%clk 0:00:40]}  Rxe4 {[%clk 0:00:43]} 39. Rxe4 {[%clk 0:00:35]}  Rxe4 {[%clk 0:00:44]} 40. Bxf8 {[%clk 0:00:35]}  Kxf8 {[%clk 0:00:44]} 41. Rb5 {[%clk 0:00:31]}  g6 {[%clk 0:00:38]} 42. Rb8+ {[%clk 0:00:26]}  Kg7 {[%clk 0:00:38]} 43. Kf2 {[%clk 0:00:27]}  g5 {[%clk 0:00:37]} 44. hxg5 {[%clk 0:00:27]}  hxg5 {[%clk 0:00:37]} 45. Rb7 {[%clk 0:00:27]}  Kg6 {[%clk 0:00:33]} 46. Kf3 {[%clk 0:00:21]}  f5 {[%clk 0:00:33]} 47. Rxa7 {[%clk 0:00:19]}  Rb4 {[%clk 0:00:33]} 48. Ra8 {[%clk 0:00:16]}  Rxb3+ {[%clk 0:00:32]} 49. Kf2 {[%clk 0:00:17]}  Kh5 {[%clk 0:00:33]} 50. Rc8 {[%clk 0:00:15]}  Rb2+ {[%clk 0:00:32]} 51. Ke3 {[%clk 0:00:11]}  Kg4 {[%clk 0:00:32]} 52. Rc5 {[%clk 0:00:11]}  Rb3+ {[%clk 0:00:31]} 53. Kf2 {[%clk 0:00:11]}  Rf3+ {[%clk 0:00:31]} 54. Ke2 {[%clk 0:00:10]}  Rxg3 {[%clk 0:00:31]} 55. Rc4+ {[%clk 0:00:10]}  f4 {[%clk 0:00:31]} 56. a5 {[%clk 0:00:10]}  Ra3 {[%clk 0:00:32]} 57. Rc5 {[%clk 0:00:10]}  Kh4 {[%clk 0:00:30]} 58. Rf5 {[%clk 0:00:08]}  Kh5 {[%clk 0:00:28]} 59. Kf2 {[%clk 0:00:07]}  Kg4 {[%clk 0:00:26]} 60. Rc5 {[%clk 0:00:07]}  Ra2+ {[%clk 0:00:26]} 61. Ke1 {[%clk 0:00:07]}  f3 {[%clk 0:00:25]} 62. Kf1 {[%clk 0:00:05]}  Kf4 {[%clk 0:00:24]} 63. Rc4+ {[%clk 0:00:04]}  Kg3 {[%clk 0:00:24]} 64. Ke1 {[%clk 0:00:04]}  Ra1+ {[%clk 0:00:24]} 65. Kd2 {[%clk 0:00:04]}  f2 {[%clk 0:00:25]} 0-1


[Site "https://www.chess.com"]

[Event "Titled Tuesday Blitz February 22 Late 2022"]
[White "Dauner, Benedikt"]
[Black "Liu, Leonardo"]
[WhiteFideId "16225899"]
[BlackFideId "30965780"]
[WhiteElo "2230"]
[BlackElo "2222"]
[Result "1/2-1/2"]
[Round "02"]
[TimeControl "180+1"]
[Date "2022.02.23"]
[WhiteClock "0:00:22"]
[BlackClock "0:00:32"]

1. d4 {[%clk 0:03:00]}  Nf6 {[%clk 0:02:54]} 2. Nf3 {[%clk 0:03:00]}  g6 {[%clk 0:02:55]} 3. Nc3 {[%clk 0:02:59]}  Bg7 {[%clk 0:02:56]} 4. e4 {[%clk 0:02:59]}  d6 {[%clk 0:02:56]} 5. Be2 {[%clk 0:02:59]}  O-O {[%clk 0:02:57]} 6. O-O {[%clk 0:02:59]}  c5 {[%clk 0:02:57]} 7. dxc5 {[%clk 0:02:57]}  dxc5 {[%clk 0:02:58]} 8. Be3 {[%clk 0:02:52]}  b6 {[%clk 0:02:57]} 9. Bc4 {[%clk 0:02:50]}  Bb7 {[%clk 0:02:57]} 10. e5 {[%clk 0:02:50]}  Ng4 {[%clk 0:02:53]} 11. Bxf7+ {[%clk 0:02:48]}  Kxf7 {[%clk 0:02:49]} 12. Ng5+ {[%clk 0:02:48]}  Kg8 {[%clk 0:02:36]} 13. Qxg4 {[%clk 0:02:49]}  Qd7 {[%clk 0:02:26]} 14. Qc4+ {[%clk 0:02:41]}  Kh8 {[%clk 0:02:21]} 15. Nf7+ {[%clk 0:02:40]}  Rxf7 {[%clk 0:02:15]} 16. Qxf7 {[%clk 0:02:40]}  Nc6 {[%clk 0:02:10]} 17. Rad1 {[%clk 0:02:34]}  Qg4 {[%clk 0:02:10]} 18. h3 {[%clk 0:02:29]}  Qb4 {[%clk 0:02:07]} 19. Qb3 {[%clk 0:02:14]}  Qh4 {[%clk 0:01:59]} 20. Qa4 {[%clk 0:02:13]}  Qh5 {[%clk 0:01:53]} 21. Qg4 {[%clk 0:02:10]}  Qxe5 {[%clk 0:01:51]} 22. Rfe1 {[%clk 0:02:09]}  Qf6 {[%clk 0:01:32]} 23. Nd5 {[%clk 0:02:06]}  Qf7 {[%clk 0:01:30]} 24. Bg5 {[%clk 0:01:55]}  Ne5 {[%clk 0:01:30]} 25. Qg3 {[%clk 0:01:31]}  Bxd5 {[%clk 0:01:22]} 26. Rxe5 {[%clk 0:01:31]}  e6 {[%clk 0:01:13]} 27. Ree1 {[%clk 0:01:02]}  Bxb2 {[%clk 0:01:13]} 28. Bf4 {[%clk 0:01:00]}  Rf8 {[%clk 0:01:07]} 29. Be5+ {[%clk 0:00:59]}  Bxe5 {[%clk 0:01:07]} 30. Qxe5+ {[%clk 0:01:00]}  Kg8 {[%clk 0:01:08]} 31. f3 {[%clk 0:00:57]}  Bxa2 {[%clk 0:01:07]} 32. Rd6 {[%clk 0:00:51]}  Bd5 {[%clk 0:01:07]} 33. Rd1 {[%clk 0:00:50]}  Qf5 {[%clk 0:01:02]} 34. Qxf5 {[%clk 0:00:29]}  Rxf5 {[%clk 0:00:56]} 35. Rd8+ {[%clk 0:00:29]}  Kg7 {[%clk 0:00:55]} 36. Rd7+ {[%clk 0:00:29]}  Rf7 {[%clk 0:00:55]} 37. Rxf7+ {[%clk 0:00:27]}  Kxf7 {[%clk 0:00:56]} 38. Kf2 {[%clk 0:00:27]}  Bc6 {[%clk 0:00:56]} 39. Ke3 {[%clk 0:00:25]}  Kf6 {[%clk 0:00:54]} 40. g4 {[%clk 0:00:22]}  Bd5 {[%clk 0:00:54]} 41. f4 {[%clk 0:00:21]}  a5 {[%clk 0:00:53]} 42. Rb1 {[%clk 0:00:21]}  a4 {[%clk 0:00:50]} 43. Rxb6 {[%clk 0:00:21]}  a3 {[%clk 0:00:50]} 44. Ra6 {[%clk 0:00:21]}  a2 {[%clk 0:00:51]} 45. c3 {[%clk 0:00:19]}  g5 {[%clk 0:00:46]} 46. Ra7 {[%clk 0:00:19]}  gxf4+ {[%clk 0:00:44]} 47. Kxf4 {[%clk 0:00:20]}  e5+ {[%clk 0:00:45]} 48. Ke3 {[%clk 0:00:19]}  Kg5 {[%clk 0:00:45]} 49. Kd3 {[%clk 0:00:18]}  h6 {[%clk 0:00:44]} 50. c4 {[%clk 0:00:18]}  Bg2 {[%clk 0:00:42]} 51. Rxa2 {[%clk 0:00:18]}  Bxh3 {[%clk 0:00:43]} 52. Ke4 {[%clk 0:00:18]}  Bxg4 {[%clk 0:00:42]} 53. Kxe5 {[%clk 0:00:18]}  h5 {[%clk 0:00:41]} 54. Kd5 {[%clk 0:00:18]}  h4 {[%clk 0:00:41]} 55. Kxc5 {[%clk 0:00:18]}  h3 {[%clk 0:00:42]} 56. Kd4 {[%clk 0:00:18]}  Kf4 {[%clk 0:00:41]} 57. c5 {[%clk 0:00:18]}  Kg3 {[%clk 0:00:41]} 58. c6 {[%clk 0:00:15]}  h2 {[%clk 0:00:42]} 59. Ra1 {[%clk 0:00:14]}  Kg2 {[%clk 0:00:42]} 60. c7 {[%clk 0:00:11]}  h1=Q {[%clk 0:00:40]} 61. Rxh1 {[%clk 0:00:12]}  Kxh1 {[%clk 0:00:41]} 62. Ke4 {[%clk 0:00:12]}  Bc8 {[%clk 0:00:41]} 63. Ke5 {[%clk 0:00:12]}  Bh3 {[%clk 0:00:40]} 64. Kf6 {[%clk 0:00:13]}  Kh2 {[%clk 0:00:40]} 65. Ke7 {[%clk 0:00:14]}  Kg3 {[%clk 0:00:40]} 66. Kd8 {[%clk 0:00:15]}  Kh2 {[%clk 0:00:41]} 67. Ke7 {[%clk 0:00:15]}  Kg3 {[%clk 0:00:40]} 68. Kd6 {[%clk 0:00:16]}  Kh2 {[%clk 0:00:41]} 69. Ke5 {[%clk 0:00:16]}  Kg3 {[%clk 0:00:41]} 70. Ke4 {[%clk 0:00:16]}  Kh2 {[%clk 0:00:42]} 71. Kf4 {[%clk 0:00:17]}  Bc8 {[%clk 0:00:41]} 72. Kf3 {[%clk 0:00:18]}  Kh3 {[%clk 0:00:41]} 73. Kf4 {[%clk 0:00:18]}  Kh4 {[%clk 0:00:42]} 74. Ke5 {[%clk 0:00:19]}  Kg5 {[%clk 0:00:42]} 75. Kd6 {[%clk 0:00:20]}  Bg4 {[%clk 0:00:42]} 76. Ke7 {[%clk 0:00:21]}  Kf4 {[%clk 0:00:40]} 77. Kd8 {[%clk 0:00:22]}  Ke5 {[%clk 0:00:40]} 78. c8=Q {[%clk 0:00:22]}  Bxc8 {[%clk 0:00:32]} 1/2-1/2


[Site "https://www.chess.com"]